Cogmind - Beta 15 @@@ ROGUE MODE // 2025.07.14 @ 17:49:54 Player: chebyrekser Result: Destroyed by HO-3V6(R) with Subdweller Laser Performance ------------- Evolutions (0) 0 Regions Visited (2) 400 Robots Destroyed (38) 190 Value Destroyed (769) 769 Prototype IDs (2) 40 Alien Tech Used (0) 0 Bonus (-200) -200 TOTAL SCORE: 1199 Bonus ------- Friendly Fire -200 Cogmind --------- Core Integrity 0/250 Matter 215/300 Energy 265/265 System Corruption 0% Temperature Cool (6) Movement Treading (160) Location -10/Subcaves Parts ------- > --- POWER (1) -------- Reinforced Ion Engine > --- PROPULSION (2) --- Light Treads Light Treads > --- UTILITY (2) ------ Scrap Shield > --- WEAPON (2) ------- Battle Cannon Subdweller Shrapnel Launcher > --- INVENTORY (5) ---- Large Storage Unit Medium Armor Plating Beam Rifle Subdweller Laser Grenade Launcher Peak State ------------ > --- POWER ------------ Reinforced Ion Engine > --- PROPULSION ------- Light Treads Light Treads > --- UTILITY ---------- Scrap Shield > --- WEAPON ----------- Battle Cannon Subdweller Shrapnel Launcher > --- INVENTORY -------- Large Storage Unit Medium Armor Plating Beam Rifle Subdweller Laser Grenade Launcher [Rating: 12] Favorites ----------- Power Ion Engine Engine Ion Engine Propulsion Light Treads Treads Light Treads Utility Large Storage Unit Device Heat Sink Storage Large Storage Unit Protection Scrap Shield Weapon Beam Rifle Energy Gun Beam Rifle Ballistic Gun Subdweller Machine Gun Ballistic Cannon Battle Cannon Launcher Grenade Launcher Special Weapon Mining Laser Impact Weapon Hammer Build | -11 -10 -10 ------- Run | Yrd Mat Sub Slots Evolved . | . . . Power . | . . . Propulsion . | . . . Utility . | . . . Weapon . | . . . Parts Attached 29 | 8 12 9 Power 4 | 2 . 2 Engine 4 | 2 . 2 Core . | . . . Reactor . | . . . Propulsion 3 | 1 1 1 Treads 3 | 1 1 1 Leg . | . . . Wheel . | . . . Hover . | . . . Flight . | . . . Utility 9 | 2 5 2 Device 4 | 1 3 . Storage 3 | 1 2 . Processor . | . . . Hackware . | . . . Protection 2 | . . 2 Artifact . | . . . Weapon 13 | 3 6 4 Energy Gun 6 | 3 3 . Energy Cannon . | . . . Ballistic Gun 1 | . . 1 Ballistic Cannon 1 | . . 1 Launcher 3 | . 1 2 Special Weapon 1 | . 1 . Impact Weapon 1 | . 1 . Slashing Weapon . | . . . Piercing Weapon . | . . . Special Melee Weapon . | . . . Unidentified Prototypes . | . . . Parts Lost 4 | . 1 3 Power 1 | . . 1 Propulsion . | . . . Utility 1 | . . 1 Weapon 2 | . 1 1 Highest Loss Streak 2 | . 1 2 To Critical Strikes . | . . . Average Backups 8 | 4 12 4 Power 1 | . 1 . Propulsion 1 | 2 2 . Utility 3 | . 4 2 Weapon 3 | 1 3 2 Tool/Special . | . . . Unused Backups 9 | . 1 8 Power 1 | . . 1 Propulsion 2 | . . 2 Utility 5 | . 1 4 Weapon 1 | . . 1 Tool/Special . | . . . Average Slot Usage (%) 93 | . 99 84 Engine 13 | . 14 13 Treads 28 | . 28 28 Device 8 | . 14 . Storage 8 | . 14 . Protection 5 | . . 13 Energy Gun 16 | . 22 7 Ballistic Gun 2 | . . 5 Ballistic Cannon 1 | . . 3 Launcher 4 | . . 11 Impact Weapon 2 | . 4 . Peak Build Rating 12 | 6 11 12 Average Rating 9 | 3 9 10 On Entrance 5 | . 6 10 Naked Turns . | . . . Heaviest Build 39 | 15 32 39 Greatest Support 40 | 20 40 40 Greatest Overweight (x) . | . . . Average Overweight (x) . | . . . Largest Inventory Capacity 15 | 8 15 15 Average Capacity 10 | 5 14 5 Most Carried 15 | 5 15 15 Average Carried 8 | 4 12 4 Final Capacity 15 | 8 15 5 Final Carried 15 | 5 15 5 Class Distribution -------------------- 83% | Mutant 16% | Subdweller-Mutant Dominant Class ---------------- Mutant | -10/Materials Mutant | -10/Subcaves Resources | -11 -10 -10 ----------- Run | Yrd Mat Sub Matter Collected 641 | 148 332 161 Remotely . | . . . Salvage Created 1038 | 111 598 329 Parts 68 | 5 38 25 Haulers Intercepted 2 | . 2 . Recyclers Shooed . | . . . Parts Field Recycled . | . . . Retrieved Matter . | . . . Parts Self-Destructed 15 | . . 15 Prevented . | . . . Kills | -11 -10 -10 ------- Run | Yrd Mat Sub Combat Hostiles Destroyed 25 | . 15 10 Melee 1 | . 1 . Guns 7 | . 5 2 AOE 16 | . 8 8 Classes Destroyed 12 | 2 7 3 Worker 1 | . 1 . Builder 2 | . 2 . Tunneler 1 | 1 . . Hauler 2 | . 2 . Recycler 1 | 1 . . Operator 2 | . 2 . Watcher 3 | . 3 . Swarmer 11 | . 8 3 Grunt 7 | . 7 . Subdweller 7 | . . 7 Scientist 1 | . . 1 Guerrilla 1 | . . 1 Best Kill Streak 11 | 1 11 6 Combat Bots Only 7 | . 7 6 Max Kills in Single Turn 4 | 1 2 4 Gunslinging 1 | . 1 . Exploded 3 | . 2 3 Melee 1 | . 1 . Uniques/NPCs Destroyed . | . . . Combat | -11 -10 -10 -------- Run | Yrd Mat Sub Hostile Shots Fired 81 | . 52 29 Missed 18 | . 11 7 Hits 63 | . 41 22 Projectile 63 | . 41 22 AOE 1 | . . 1 Critical Strikes 1 | . 1 . Damage Taken 1189 | . 463 726 Core 250 | . 112 138 Absorbed by Shields . | . . . Core Remaining (%) 100 | 100 . . Volleys Fired 81 | 3 53 25 Largest 2 | 2 2 1 Hottest 112 | 90 112 56 Shots Fired 124 | 6 93 25 Gun 100 | 6 85 9 Cannon 7 | . . 7 Launcher 13 | . 4 9 Special 4 | . 4 . Kinetic 12 | . . 12 Thermal 74 | 3 65 6 Explosive 11 | . 4 7 Electromagnetic 27 | 3 24 . Robot Hit Streak 10 | 3 10 4 Robot Miss Streak 4 | 2 4 1 Penetration Max . | . . . Secondary Targets 2 | . 2 . Max Gunslinging Chain 1 | . 1 . Shots Hit Robots 77 | 3 59 15 Core Hits 50 | 2 25 23 Critical Kills 1 | . 1 . Critical Parts Destroyed 1 | . 1 . Critical Strikes 9 | . 8 1 Burn 5 | . 5 . Blast 1 | . . 1 Corrupt 1 | . 1 . Smash 2 | . 2 . Melee Attacks 11 | . 11 . Impact 11 | . 11 . Slashing . | . . . Piercing . | . . . Sneak Attacks 2 | . 2 . Combat Hostiles . | . . . Follow-up Attacks . | . . . Damage Inflicted 2584 | 67 1367 1150 Guns 870 | 27 726 117 Cannons 95 | . . 95 Explosions 1431 | 40 453 938 Melee 188 | . 188 . Ramming . | . . . Kinetic 280 | . . 280 Thermal 731 | 40 620 71 Explosive 1164 | . 365 799 Electromagnetic 221 | 27 194 . Impact 188 | . 188 . Slashing . | . . . Piercing . | . . . Highest Corruption . | . . . Average Corruption . | . . . Corruption Purged . | . . . Corruption Blocked . | . . . Overload Shots . | . . . Overflow Damage 142 | . 92 50 Projectiles . | . . . Explosions 62 | . 12 50 Melee 80 | . 80 . Knockbacks 2 | . . 2 Impact . | . . . Kinetic 2 | . . 2 Secondary . | . . . Self-Inflicted Damage 161 | . 20 141 Shots 6 | . 1 5 Rammed . | . . . Targets Rammed . | . . . Kicked . | . . . Crushed . | . . . Highest Temperature 354 | 60 354 . Average Temperature 132 | 26 139 . Received Heat Transfer 279 | . 198 81 Effects 2 | . 2 . Energy Bleed 2 | . 2 . Siege Activations . | . . . Martial Activations . | . . . Shielding Activations . | . . . Robots Disrupted . | . . . Combat Hostiles . | . . . Robots Corrupted 2 | . 2 . Combat Hostiles 1 | . 1 . Parts Fried 1 | . 1 . Impact Corruptions 5 | . 5 . Robots Melted . | . . . Combat Hostiles . | . . . Parts Melted 3 | . 3 . Heat Transferred 2111 | 50 1876 185 Parts Sabotaged . | . . . Parts Stolen . | . . . Parts Stripped . | . . . Power Chain Reactions 3 | 1 2 . Alert | -11 -10 -10 ------- Run | Yrd Mat Sub Maximum Alert Level . | . . . Low Security (%) 100 | 100 100 . Level 1 . | . . . Level 2 . | . . . Level 3 . | . . . Level 4 . | . . . Level 5 . | . . . High Security . | . . . Max Security . | . . . Peak Influence 194 | 5 194 . Initial . | . . . Average 49 | 1 53 . Influence Increases 625 | 10 545 70 Destroy 0b10 Robot/C 360 | . 300 60 Destroy 0b10 Robot/NC 60 | 10 50 . Destroy Leader 80 | . 70 10 Successful Hack 49 | . 49 . Disable Machine 30 | . 30 . Destroy Structure 31 | . 31 . Lose Combat Pursuer 15 | . 15 . Influence Decreases 561 | 10 509 42 Entered New Map 18 | . . 18 Time Decay 383 | 10 349 24 Lost Part 10 | . 10 . Purge Threat 150 | . 150 . Squads Dispatched 4 | . 4 . Investigation 2 | . 2 . Extermination . | . . . Reinforcement 2 | . 2 . Assault . | . . . Garrison . | . . . Intercept . | . . . Searches Triggered . | . . . Construction Impeded . | . . . Haulers Reinforced . | . . . Active Scanning Responses . | . . . Cargo Convoy Interrupts . | . . . Stealth | -11 -10 -10 --------- Run | Yrd Mat Sub Distress Signals 1 | . 1 . Communications Jammed . | . . . Distress Signals . | . . . Times Spotted 38 | . 21 17 Peak Tracking Total 5 | . 4 5 Tactical Retreats 1 | . 1 . Traps | -11 -10 -10 ------- Run | Yrd Mat Sub Traps Triggered 3 | . 1 2 Indirectly . | . . . Trap Hack Attempts . | . . . Triggered . | . . . Disarmed . | . . . Reprogrammed . | . . . Reused . | . . . Traps Extracted . | . . . Installed . | . . . Triggered . | . . . Machines | -11 -10 -10 ---------- Run | Yrd Mat Sub Machines Disabled 2 | . 2 . Max in Single Turn 1 | . 1 . Machines Repaired . | . . . Machines Dismantled . | . . . Machines Sabotaged . | . . . Overloaded Fab Kills . | . . . Hacking | -11 -10 -10 --------- Run | Yrd Mat Sub Machines Accessed 6 | . 5 1 Terminals 5 | . 5 . Fabricators . | . . . Repair Stations . | . . . Recycling Units . | . . . Scanalyzers . | . . . Garrison Access . | . . . Total Hacks 25 | . 22 3 Successful 16 | . 13 3 Failed 9 | . 9 . Catastrophic 2 | . 2 . Database Lockouts . | . . . Manual 18 | . 18 . Terminals 22 | . 22 . Fabricators . | . . . Repair Stations . | . . . Recycling Units . | . . . Scanalyzers . | . . . Garrison Access . | . . . Terminal Hacks 12 | . 9 3 Record 3 | . . 3 Prototype ID Bank 1 | . 1 . Terminal Index 1 | . 1 . Unreport Threat 1 | . 1 . Locate Traps 3 | . 3 . Zone Layout 3 | . 3 . Fabricator Hacks . | . . . Repair Station Hacks . | . . . Recycling Unit Hacks . | . . . Scanalyzer . | . . . Garrison Access Hacks . | . . . Unauthorized Hacks 4 | . 4 . Terminals 4 | . 4 . Botnet 4 | . 4 . Fabricators . | . . . Repair Stations . | . . . Recycling Units . | . . . Scanalyzers . | . . . Garrison Access . | . . . Data Cores Recovered . | . . . Used . | . . . Hacking Detections 5 | . 5 . Full Trace Events 1 | . 1 . Feedback Events . | . . . Feedback Blocked . | . . . Robot Schematics Acquired . | . . . Robots Built . | . . . Authchips . | . . . Time . | . . . Total Robot Build Rating . | . . . Part Schematics Acquired . | . . . Parts Built . | . . . Authchips . | . . . Time . | . . . Total Part Build Rating . | . . . Parts Repaired . | . . . Time . | . . . Parts Recycled . | . . . Recycled Matter . | . . . Retrieved Matter . | . . . Retrieved Components . | . . . Parts Scanalyzed . | . . . Part Schematics Acquired . | . . . Parts Damaged . | . . . Bothacking | -11 -10 -10 ------------ Run | Yrd Mat Sub Used RIF Installer . | . . . Robots Hacked . | . . . Non-combat . | . . . Combat . | . . . Robot Hacks Applied . | . . . Relay Couplers Released . | . . . Fabnet Peak Effective % . | . . . Robots Rewired . | . . . Allies Hacked . | . . . Hacks Repelled . | . . . Allies | -11 -10 -10 -------- Run | Yrd Mat Sub Total Allies . | . . . Largest Group . | . . . Highest-Rated Group . | . . . Highest-Rated Ally . | . . . Total Orders . | . . . Ally Attacks . | . . . Total Damage . | . . . Kills . | . . . Allies Corrupted . | . . . Allies Melted . | . . . Intel | -11 -10 -10 ------- Run | Yrd Mat Sub Active Infowar (turns) 433 | 15 418 . Structural 180 | . 180 . Seismic 253 | 15 238 . Robot Analysis Total . | . . . Derelict Logs Recovered . | . . . Drone Launches . | . . . Drone Recoveries . | . . . Exploration | -11 -10 -10 ------------- Run | Yrd Mat Sub Turns Passed 2089 | 88 1154 847 Spaces Moved 1059 | 42 566 451 Core 6 | 6 . . Treads 1053 | 36 566 451 Legs . | . . . Wheels . | . . . Hover . | . . . Flight . | . . . Fastest Speed 50 | 50 160 160 Average Speed 159 | 144 160 160 Slowest Speed 160 | 160 160 160 Overloaded Moves . | . . . Propulsion Burnouts . | . . . Robots Hopped . | . . . Potential Cave-ins . | . . . Cave-ins Triggered . | . . . Exploration Rate (%) 43 | 3 88 38 Regions Visited 2 Branch Regions 1 Pre-discovered Areas 1 | . . 1 Known Exits Taken . | . . . Unknown Exits Taken 2 | 1 1 . Scrap Searched . | . . . Spaces Dug 4 | . 4 . Terrain Destroyed 110 | . 31 79 Melee 2 | . 2 . Projectile 3 | . 2 1 AOE 105 | . 27 78 Terrain Rammed . | . . . Walls Destroyed . | . . . Machines Disabled . | . . . Actions | -11 -10 -10 --------- Run | Yrd Mat Sub Total 1304 | 62 691 551 Wait 65 | . 24 41 Move 1057 | 41 565 451 Hop . | . . . Pick Up 31 | 8 16 7 Fast Attach 9 | 4 1 4 Attach 8 | 2 3 3 Detach . | . . . Swap 18 | 2 12 4 Drop 19 | 2 6 11 Fire 81 | 3 53 25 Melee 11 | . 11 . Ram . | . . . Kick . | . . . Crush . | . . . Escape Stasis . | . . . Rewire . | . . . Trap . | . . . Miscellaneous 5 | . . 5 Route ------- -11/Scrapyard -10/Materials (discovered 5 exits: [*Mat x2] / [*Min x2] / *Sub) -10/Subcaves (discovered 2 exits: [*Mat x2]) History --------- Turn | Location | Event 9 | -11/Scrapyard | Discovered new exit (range 16) 89 | -11/Scrapyard | Entered Materials 312 | -10/Materials | Build established: Mutant 525 | -10/Materials | Destroyed 7 combat bots 546 | -10/Materials | Discovered new exit (range 13) 759 | -10/Materials | Discovered new exit (range 5) 849 | -10/Materials | Discovered new exit (range 14) 1020 | -10/Materials | Discovered new exit (range 11) 1235 | -10/Materials | Discovered new exit (range 8) 1243 | -10/Materials | Entered Subcaves 1244 | -10/Subcaves | Approached by a straggling Scientist 1338 | -10/Subcaves | Visited Clippyterm 1343 | -10/Subcaves | Learned location of Deep Caves (-7) 1402 | -10/Subcaves | Ambushed by swarm of Subdwellers 1402 | -10/Subcaves | Ambushed by Subdwellers from Twisted Machinery 1402 | -10/Subcaves | Ambushed by Subdwellers from Twisted Machinery 1406 | -10/Subcaves | Ambushed by Subdwellers from Twisted Machinery 1411 | -10/Subcaves | Core integrity fell below 50% 1450 | -10/Subcaves | Lost 3 allies 1555 | -10/Subcaves | Core integrity fell below 20% 1739 | -10/Subcaves | Build established: Subdweller-Mutant 1798 | -10/Subcaves | A swath of the cavern ceiling suddenly collapsed 1882 | -10/Subcaves | Ambushed by Subdwellers from Twisted Machinery 1956 | -10/Subcaves | Discovered new exit (range 3) 1957 | -10/Subcaves | Shifting Twisted Machinery released Sub. Shrapnel Launcher 1985 | -10/Subcaves | Shifting Twisted Machinery released Sub. Laser 2051 | -10/Subcaves | Shifting Twisted Machinery released Shrapnel Trap 2064 | -10/Subcaves | Discovered new exit (range 6) 2073 | -10/Subcaves | Build established: Mutant 2075 | -10/Subcaves | Ambushed by Subdweller buried in earth 2090 | -10/Subcaves | Destroyed by HO-3V6(R) with Subdweller Laser Last Messages --------------- Sub. Laser falls loose from the Twisted Machinery. Dropped Beam Rifle. Acquired Sub. Laser. Acquired Sub. Shrapnel Launcher. Shrapnel Trap falls loose from the Twisted Machinery. EXIT=FOUND S-10 Pest destroyed. HO-3V6(R): "ARGHSUB!" Destroyed Lgt. Ion Engine. Destroyed Flight Unit. S-10 Pest destroyed. HO-3V6(R) knocked back. Flight Unit fries itself beyond repair. M3-4R0(g) destroyed. HO-3V6(R) knocked back. Flight Unit fries itself beyond repair. Lgt. Assault Rifle fries itself beyond repair. HO-3V6(R) suffers critical hit (Blast). Map ----- +----------------------------------------------------+ | ????????????#" ##????????????????????????? | | ????????????#"" # # ##???????????????????????? | | ????????????# "" ### #???????????????????????? | | ????????????# ""#?### #???????????????????????? | | ????????????# ""#?## #???????????????????????? | | ????????????# ""#### [ #???????????????????????? | | ????????????# "###"" ## #???????????????????????? | | ????????????# ##"" ####???????????????????????? | | ????????????# #### " #?????????????????????????? | | ????????????# ## ##?????????????????????????? | | ????????????# "### #??????????????????????????? | | ????????????## """"# ##?????????????????????????? | | ?????????????# """ #?????????????????????????? | | ?????????????# " #?????????????????????????? | | ?????????????#### # ##????????????????????????? | | ????????????????### #????????????????????????? | | ??????????????????# ##????????????????????????? | | ??????????????????## #?????????????????????????? | | ???????????????????# #?????????????????????????? | | ??????????????????##" ##?????????????????????????? | | ??????????????????#""" #?????####??##????????????? | | ??????????????????## ####### ;;# ###??????????? | | ??????????????????# # ;;% ; ;;;;;;#??????????? | | ??????????????????#"""&#;;%%; ;#??????????? | | ??????????????????# %! R % ;#???????????? | | ??????????????????## [ @ % % ;#???????????? | | ???????????????????##### < ; ;#???????????? | | ??????????????????????#;;; ; ;;;;;#???????????? | | ??????????????????????###;#;# #######???????????? | | ????????????????????????#####?##?????????????????? | | ?????????????????????????????????????????????????? | | ?????????????????????????????????????????????????? | | ?????????????????????????????????????????????????? | | ?????????????????????????????????????????????????? | | ?????????????????????????????????????????????????? | | ?????????????????????????????????????????????????? | | ?????????????????????????????????????????????????? | | ?????????????????????????????????????????????????? | | ?????????????????????????????????????????????????? | | ?????????????????????????????????????????????????? | | ?????????????????????????????????????????????????? | | ?????????????????????????????????????????????????? | | ?????????????????????????????????????????????????? | | ?????????????????????????????????????????????????? | | ?????????????????????????????????????????????????? | | | | | | | | | | | +----------------------------------------------------+ Best States ------------- Heat Dissipation 35 Energy Generation 15 Energy Capacity 265 Matter Stores 300 Matter Capacity 300 Sight Range 16 Terrain Scan Density 10 Armor Coverage 800 Evasion (%) 50 Recoil Reduction 2 Item Schematics ----------------- None Robot Schematics ------------------ None Fabricated ------------ Nothing Repaired ---------- Nothing Alien Tech Used ----------------- None Achievements -------------- None Challenges ------------ None Game ------ Seed PropulsionForceLegs Manual? 0 Play Time 00:20:41 Cumulative 10.6 hours Start 2025.07.14 @ 17:31:21 End 2025.07.14 @ 17:49:54 Sessions 1 Manual Loads 0 Difficulty Rogue Special Mode None Game No. 4 Rogue 4 Adventurer 0 Explorer 0 Win Type - Total 1 Types 1/0/0/0/0/0/0/0/0/0 Lore% 14 Gallery% 17 Achievement% 22 Wizard Run 0 Options --------- Layout 1 ASCII 0 Keyboard 0 Movement Mouse Keybinds 0 Fullscreen 1 Font 24/Smallcaps Map View 50x35 Zoom Use 0% Tactical HUD 0 Map Filters NONE Filters NONE Steam 1 RUN: 8fbe6b9a-d3f7-44f0-9ca3-bd62c36ef653